Cogmind - Beta 13 *** ADVENTURER MODE // 2024.03.14 @ 00:50:05 Player: Moshh Result: Destroyed by H-55 Commando with Assault Rifle Performance ------------- Evolutions (1) 500 Regions Visited (5) 1000 Robots Destroyed (20) 100 Value Destroyed (480) 480 Prototype IDs (0) 0 Alien Tech Used (0) 0 Bonus (200) 200 TOTAL SCORE: 2280 Bonus ------- Pacifist 200 Cogmind --------- Core Integrity 0/400 Matter 300/300 Energy 99/100 System Corruption 0% Temperature Cool (0) Movement Core (50) Location -8/Mines Parts ------- > --- POWER (2) -------- (None) > --- PROPULSION (2) --- (None) > --- UTILITY (3) ------ Signal Interpreter Hacking Suite > --- WEAPON (2) ------- (None) > --- INVENTORY (5) ---- Fission Core ECM Suite Hacking Suite Hacking Suite Grenade Launcher Peak State ------------ > --- POWER ------------ Improved Ion Engine > --- PROPULSION ------- Light Treads Improved Treads > --- UTILITY ---------- Signal Interpreter Hacking Suite > --- WEAPON ----------- Datajack Heavy Mace > --- INVENTORY -------- Flight Unit ECM Suite Hacking Suite Hacking Suite Grenade Launcher [Rating: 13] Favorites ----------- Power Light Ion Engine Engine Light Ion Engine Propulsion Flight Unit Treads Light Treads Leg Aluminum Leg Wheel Compact Wheel Flight Unit Flight Unit Utility Hacking Suite Device ECM Suite Storage High-capacity Storage Unit Processor Signal Interpreter Hackware Hacking Suite Weapon Heavy Mace Ballistic Gun Light Assault Rifle Impact Weapon Heavy Mace Special Melee Weapon Datajack Build | -11 -10 -9 -9 -9 -8 ------- Run | Yrd Mat Mat Min Exi Min Slots Evolved 2 | . . 2 . . . Power 1 | . . 1 . . . Propulsion . | . . . . . . Utility 1 | . . 1 . . . Weapon . | . . . . . . Parts Attached 17 | 3 1 11 1 1 . Power 2 | . . 1 1 . . Engine 2 | . . 1 1 . . Core . | . . . . . . Reactor . | . . . . . . Propulsion 8 | 2 1 4 . 1 . Treads 3 | . . 3 . . . Leg 1 | . . 1 . . . Wheel 2 | 2 . . . . . Hover . | . . . . . . Flight 2 | . 1 . . 1 . Utility 4 | . . 4 . . . Device 1 | . . 1 . . . Storage 1 | . . 1 . . . Processor 1 | . . 1 . . . Hackware 1 | . . 1 . . . Protection . | . . . . . . Artifact . | . . . . . . Weapon 3 | 1 . 2 . . . Energy Gun . | . . . . . . Energy Cannon . | . . . . . . Ballistic Gun 1 | 1 . . . . . Ballistic Cannon . | . . . . . . Launcher . | . . . . . . Special Weapon . | . . . . . . Impact Weapon 1 | . . 1 . . . Slashing Weapon . | . . . . . . Piercing Weapon . | . . . . . . Special Melee Weapon 1 | . . 1 . . . Unidentified Prototypes . | . . . . . . Parts Lost 7 | . . 4 . . 3 Power 2 | . . 1 . . 1 Propulsion 3 | . . 2 . . 1 Utility . | . . . . . . Weapon 2 | . . 1 . . 1 Highest Loss Streak 2 | . . 2 . . 2 To Critical Strikes 2 | . . 1 . . 1 Average Slot Usage (%) 53 | . 36 58 52 55 37 Engine 8 | . . 7 8 11 4 Treads 4 | . . 13 . . . Leg 2 | . . 1 11 . . Wheel 1 | . 16 . . . . Flight 5 | . 6 2 . 11 . Processor 9 | . . 10 11 11 11 Hackware 9 | . . 10 11 11 11 Ballistic Gun 1 | . 14 . . . . Impact Weapon 9 | . . 10 11 11 11 Naked Turns . | . . . . . . Heaviest Build 11 | 1 1 11 6 6 6 Greatest Support 43 | 26 26 43 10 4 4 Greatest Overweight (x) 3 | . . 3 . 1 1 Average Overweight (x) . | . . . . 1 . Largest Inventory Capacity 20 | 5 5 20 5 5 5 Average Capacity 5 | 5 5 5 5 5 5 Most Carried 5 | 3 3 5 5 5 5 Average Carried 4 | 2 1 4 5 4 5 Final Capacity 5 | 5 5 5 5 5 5 Final Carried 5 | . 1 5 5 5 5 Class Distribution -------------------- 88% | Hacker-Mutant 11% | Mutant Dominant Class ---------------- Mutant | -10/Materials Hacker-Mutant | -9/Materials Hacker-Mutant | -9/Mines Hacker-Mutant | -9/Exiles Hacker-Mutant | -8/Mines Resources | -11 -10 -9 -9 -9 -8 ----------- Run | Yrd Mat Mat Min Exi Min Matter Collected 325 | 201 . 114 10 . . Remotely . | . . . . . . Salvage Created 643 | . . 487 107 . 49 Parts 26 | . . 19 5 . 2 Haulers Intercepted . | . . . . . . Recyclers Shooed . | . . . . . . Parts Field Recycled . | . . . . . . Retrieved Matter . | . . . . . . Parts Self-Destructed . | . . . . . . Prevented . | . . . . . . Kills | -11 -10 -9 -9 -9 -8 ------- Run | Yrd Mat Mat Min Exi Min Combat Hostiles Destroyed 16 | . . 9 3 . 4 Melee 8 | . . 5 1 . 2 Classes Destroyed 8 | . . 6 2 . . Recycler 1 | . . . 1 . . Operator 1 | . . 1 . . . Watcher 2 | . . 2 . . . Swarmer 7 | . . . 3 . 4 Grunt 5 | . . 5 . . . Brawler 1 | . . 1 . . . Duelist 1 | . . 1 . . . Sentry 2 | . . 2 . . . Best Kill Streak 6 | . . 6 3 . 4 Combat Bots Only 6 | . . 6 3 . 4 Max Kills in Single Turn 1 | . . 1 1 . 1 Gunslinging . | . . . . . . Exploded . | . . . . . . Melee 1 | . . 1 1 . 1 Uniques/NPCs Destroyed . | . . . . . . Combat | -11 -10 -9 -9 -9 -8 -------- Run | Yrd Mat Mat Min Exi Min Hostile Shots Fired 155 | . 3 61 27 . 64 Missed 53 | . 3 21 10 . 19 Damage Taken 961 | . . 503 125 . 333 Core 409 | . . 115 54 . 240 Absorbed by Shields . | . . . . . . Ignored by Resistances 292 | . . 149 39 . 104 Core Remaining (%) 100 | 100 100 . . . . Volleys Fired . | . . . . . . Largest . | . . . . . . Hottest . | . . . . . . Shots Fired . | . . . . . . Gun . | . . . . . . Cannon . | . . . . . . Launcher . | . . . . . . Special . | . . . . . . Kinetic . | . . . . . . Thermal . | . . . . . . Explosive . | . . . . . . Electromagnetic . | . . . . . . Robot Hit Streak . | . . . . . . Robot Miss Streak . | . . . . . . Penetration Max . | . . . . . . Secondary Targets . | . . . . . . Shots Hit Robots 36 | . . 26 5 . 5 Core Hits 6 | . . 4 2 . . Critical Kills 2 | . . 1 1 . . Critical Parts Destroyed 6 | . . 4 1 . 1 Critical Strikes 8 | . . 5 2 . 1 Smash 8 | . . 5 2 . 1 Melee Attacks 42 | . . 29 7 . 6 Impact 41 | . . 28 7 . 6 Slashing . | . . . . . . Piercing . | . . . . . . Sneak Attacks 2 | . . 1 1 . . Combat Hostiles . | . . . . . . Follow-up Attacks . | . . . . . . Damage Inflicted 1551 | . . 1000 285 . 266 Guns . | . . . . . . Cannons . | . . . . . . Explosions . | . . . . . . Melee 1551 | . . 1000 285 . 266 Ramming . | . . . . . . Kinetic . | . . . . . . Thermal . | . . . . . . Explosive . | . . . . . . Electromagnetic . | . . . . . . Impact 1551 | . . 1000 285 . 266 Slashing . | . . . . . . Piercing . | . . . . . . Highest Corruption . | . . . . . . Average Corruption . | . . . . . . Corruption Purged . | . . . . . . Corruption Blocked . | . . . . . . Overload Shots . | . . . . . . Overflow Damage 492 | . . 229 112 . 151 Projectiles . | . . . . . . Explosions . | . . . . . . Melee 492 | . . 229 112 . 151 Knockbacks 7 | . . 5 1 . 1 Impact 6 | . . 4 1 . 1 Kinetic . | . . . . . . Secondary 1 | . . 1 . . . Self-Inflicted Damage . | . . . . . . Shots . | . . . . . . Rammed . | . . . . . . Targets Rammed . | . . . . . . Kicked . | . . . . . . Crushed . | . . . . . . Highest Temperature 5 | . . 5 . . . Average Temperature 3 | . . 3 . . . Received Heat Transfer 258 | . . 225 33 . . Siege Activations . | . . . . . . Robots Corrupted . | . . . . . . Combat Hostiles . | . . . . . . Parts Fried 11 | . . 10 . . 1 Impact Corruptions 26 | . . 14 5 . 7 Robots Melted . | . . . . . . Combat Hostiles . | . . . . . . Parts Melted 1 | . . 1 . . . Heat Transferred . | . . . . . . Parts Sabotaged . | . . . . . . Parts Stolen . | . . . . . . Parts Stripped . | . . . . . . Power Chain Reactions . | . . . . . . Alert | -11 -10 -9 -9 -9 -8 ------- Run | Yrd Mat Mat Min Exi Min Peak Influence 232 | . 10 232 140 . 90 Initial 50 | . . 3 50 . . Average 88 | . 4 100 135 . 47 Maximum Alert Level 1 | . . 1 . . . Low Security (%) 92 | 100 100 86 100 . 100 Level 1 7 | . . 13 . . . Level 2 . | . . . . . . Level 3 . | . . . . . . Level 4 . | . . . . . . Level 5 . | . . . . . . High Security . | . . . . . . Max Security . | . . . . . . Squads Dispatched 2 | . . 2 . . . Investigation 1 | . . 1 . . . Extermination . | . . . . . . Reinforcement 1 | . . 1 . . . Assault . | . . . . . . Garrison . | . . . . . . Intercept . | . . . . . . Searches Triggered . | . . . . . . Construction Impeded . | . . . . . . Haulers Reinforced . | . . . . . . Active Scanning Responses . | . . . . . . Cargo Convoy Interrupts . | . . . . . . Stealth | -11 -10 -9 -9 -9 -8 --------- Run | Yrd Mat Mat Min Exi Min Distress Signals . | . . . . . . Communications Jammed . | . . . . . . Distress Signals . | . . . . . . Times Spotted 30 | . 3 17 5 . 5 Peak Tracking Total 6 | . 3 6 3 . 4 Tactical Retreats 1 | . . 1 . . . Traps | -11 -10 -9 -9 -9 -8 ------- Run | Yrd Mat Mat Min Exi Min Traps Triggered 2 | . . 2 . . . Indirectly . | . . . . . . Trap Hack Attempts . | . . . . . . Triggered . | . . . . . . Disarmed . | . . . . . . Reprogrammed . | . . . . . . Reused . | . . . . . . Traps Extracted . | . . . . . . Installed . | . . . . . . Triggered . | . . . . . . Machines | -11 -10 -9 -9 -9 -8 ---------- Run | Yrd Mat Mat Min Exi Min Machines Disabled . | . . . . . . Max in Single Turn . | . . . . . . Machines Repaired . | . . . . . . Machines Dismantled . | . . . . . . Machines Sabotaged . | . . . . . . Overloaded Fab Kills . | . . . . . . Hacking | -11 -10 -9 -9 -9 -8 --------- Run | Yrd Mat Mat Min Exi Min Machines Accessed 5 | . 3 1 . 1 . Terminals 2 | . 2 . . . . Fabricators . | . . . . . . Repair Stations . | . . . . . . Recycling Units 1 | . 1 . . . . Scanalyzers 1 | . . 1 . . . Garrison Access . | . . . . . . Total Hacks 12 | . 9 2 . 1 . Successful 12 | . 9 2 . 1 . Failed . | . . . . . . Catastrophic . | . . . . . . Database Lockouts . | . . . . . . Manual . | . . . . . . Terminals 4 | . 4 . . . . Fabricators . | . . . . . . Repair Stations . | . . . . . . Recycling Units 5 | . 5 . . . . Scanalyzers 2 | . . 2 . . . Garrison Access . | . . . . . . Terminal Hacks 5 | . 4 . . 1 . Record 4 | . 3 . . 1 . Locate Traps 1 | . 1 . . . . Fabricator Hacks . | . . . . . . Repair Station Hacks . | . . . . . . Recycling Unit Hacks 5 | . 5 . . . . Recycle Component 2 | . 2 . . . . Process 1 | . 1 . . . . Report Inventory 1 | . 1 . . . . Retrieve Matter 1 | . 1 . . . . Scanalyzer 2 | . . 2 . . . Insert Component 1 | . . 1 . . . Analyze 1 | . . 1 . . . Garrison Access Hacks . | . . . . . . Unauthorized Hacks . | . . . . . . Terminals . | . . . . . . Fabricators . | . . . . . . Repair Stations . | . . . . . . Recycling Units . | . . . . . . Scanalyzers . | . . . . . . Garrison Access . | . . . . . . Data Cores Recovered . | . . . . . . Used . | . . . . . . Hacking Detections . | . . . . . . Full Trace Events . | . . . . . . Feedback Events . | . . . . . . Feedback Blocked . | . . . . . . Robot Schematics Acquired . | . . . . . . Robots Built . | . . . . . . Authchips . | . . . . . . Time . | . . . . . . Total Robot Build Rating . | . . . . . . Part Schematics Acquired 1 | . . 1 . . . Parts Built . | . . . . . . Authchips . | . . . . . . Time . | . . . . . . Total Part Build Rating . | . . . . . . Parts Repaired . | . . . . . . Time . | . . . . . . Parts Recycled 2 | . 2 . . . . Recycled Matter 35 | . 35 . . . . Retrieved Matter 35 | . 35 . . . . Retrieved Components . | . . . . . . Parts Scanalyzed 1 | . . 1 . . . Part Schematics Acquired 1 | . . 1 . . . Parts Damaged . | . . . . . . Bothacking | -11 -10 -9 -9 -9 -8 ------------ Run | Yrd Mat Mat Min Exi Min Used RIF Installer . | . . . . . . Robots Hacked 1 | . . 1 . . . Non-combat 1 | . . 1 . . . Combat . | . . . . . . Robot Hacks Applied 1 | . . 1 . . . parse_system 1 | . . 1 . . . Relay Couplers Released . | . . . . . . Fabnet Peak Effective % . | . . . . . . Robots Rewired . | . . . . . . Allies Hacked . | . . . . . . Hacks Repelled . | . . . . . . Allies | -11 -10 -9 -9 -9 -8 -------- Run | Yrd Mat Mat Min Exi Min Total Allies . | . . . . . . Largest Group . | . . . . . . Highest-Rated Group . | . . . . . . Highest-Rated Ally . | . . . . . . Total Orders . | . . . . . . Ally Attacks . | . . . . . . Total Damage . | . . . . . . Kills . | . . . . . . Allies Corrupted . | . . . . . . Allies Melted . | . . . . . . Intel | -11 -10 -9 -9 -9 -8 ------- Run | Yrd Mat Mat Min Exi Min Robot Analysis Total . | . . . . . . Derelict Logs Recovered . | . . . . . . Drone Launches . | . . . . . . Drone Recoveries . | . . . . . . Exploration | -11 -10 -9 -9 -9 -8 ------------- Run | Yrd Mat Mat Min Exi Min Turns Passed 1478 | 35 137 509 232 492 73 Spaces Moved 1381 | 56 231 429 175 408 82 Core 134 | 53 . 1 . . 80 Treads 140 | . . 140 . . . Legs 220 | . . 45 175 . . Wheels 83 | 3 80 . . . . Hover . | . . . . . . Flight 804 | . 151 243 . 408 2 Fastest Speed 40 | 50 40 40 120 120 50 Average Speed 93 | 52 57 88 120 120 65 Slowest Speed 200 | 90 90 200 120 120 120 Overloaded Moves . | . . . . . . Propulsion Burnouts . | . . . . . . Robots Hopped 4 | . 4 . . . . Cave-ins Triggered . | . . . . . . Exploration Rate (%) 29 | 4 25 35 14 77 22 Regions Visited 5 Branch Regions 3 Pre-discovered Areas . | . . . . . . Known Exits Taken 3 | . . 1 1 1 . Unknown Exits Taken 2 | 1 1 . . . . Scrap Searched 1 | . . . 1 . . Spaces Dug . | . . . . . . Terrain Destroyed . | . . . . . . Melee . | . . . . . . Projectile . | . . . . . . AOE . | . . . . . . Terrain Rammed . | . . . . . . Walls Destroyed . | . . . . . . Machines Disabled . | . . . . . . Actions | -11 -10 -9 -9 -9 -8 --------- Run | Yrd Mat Mat Min Exi Min Total 1488 | 61 230 512 184 410 91 Wait 33 | . . 28 2 . 3 Move 1370 | 55 224 428 174 407 82 Hop 2 | . 2 . . . . Pick Up 14 | 3 2 8 . 1 . Fast Attach 6 | . . 5 1 . . Attach 8 | 3 . 5 . . . Detach 5 | . 1 4 . . . Swap 3 | . 1 1 . 1 . Drop 5 | . . 4 . 1 . Fire . | . . . . . . Melee 42 | . . 29 7 . 6 Ram . | . . . . . . Kick . | . . . . . . Crush . | . . . . . . Escape Stasis . | . . . . . . Rewire . | . . . . . . Trap . | . . . . . . Miscellaneous . | . . . . . . Route ------- -11/Scrapyard -10/Materials -9/Materials -9/Mines (discovered 2 exits: [*Mat] / *Exi) -9/Exiles -8/Mines History --------- Turn | Location | Event 9 | -11/Scrapyard | Discovered new exit (range 15) 36 | -11/Scrapyard | Entered Materials 158 | -10/Materials | Discovered new exit (range 5) 173 | -10/Materials | Entered another Materials area 173 | -9/Materials | Evolved 2 slots: Power x1, Utility x1 488 | -9/Materials | Build established: Hacker-Mutant 669 | -9/Materials | Discovered new exit (range 7) 680 | -9/Materials | Identified exit to Mines 682 | -9/Materials | Entered Mines 815 | -9/Mines | Deemed a non-threat by the Exiles lab entrance 816 | -9/Mines | Discovered new exit (range 5) 864 | -9/Mines | Discovered new exit (range 10) 912 | -9/Mines | Identified exit to Exiles 914 | -9/Mines | Entered Exiles 914 | -9/Exiles | Found Exiles lab abandoned 1383 | -9/Exiles | Discovered new exit (range 14) 1404 | -9/Exiles | Identified exit to Mines 1406 | -9/Exiles | Entered Mines 1415 | -8/Mines | Core integrity fell below 50% 1444 | -8/Mines | Core integrity fell below 20% 1479 | -8/Mines | Destroyed by H-55 Commando with Assault Rifle Last Messages --------------- S-10 Pest system corrupted by crushing effect. S-10 Pest destroyed. Destroyed Flight Unit. S-10 Pest system corrupted by crushing effect. S-10 Pest destroyed. R-06 Scavenger collects Corrupted Flight Unit. R-06 Scavenger collects Corrupted Lgt. Assault Rifle. Destroyed Flight Unit. S-10 Pest system corrupted by crushing effect. S-10 Pest system terminally corrupted. Lgt. Assault Rifle fried. Penetrated by Slug. T-07 Excavator destroyed. Penetrated by Slug. Critical hit (Destroy). Hvy. Mace destroyed. Penetrated by Slug. Map ----- +----------------------------------------------------+ | | | | | | | | | ?????????????????????????????????????????????????? | | ?????????????????????????????????????????????????? | | ?????????????????????????????????????????????????? | | ?????????????????????????????????????????????????? | | ?????????????????????????????????????????????????? | | ?????????????????????????????????????????????????? | | ?????????????????????????????????????????????????? | | ??????????????????????????####???????????????????? | | ??????????????????????????# ##??????????????????? | | ??????????????????????????# ###????????????????? | | ??????????????????????????# ##???????????????? | | ?????????????????????????## ####????????????? | | ????????????????????????## ##???????????? | | ???????????????????????## ##??????????? | | ??????????????????????## ## #??????????? | | ??????????????????????# #### #??????????? | | ?????????????????????## #??# ##??????????? | | ?????????????????????# #??# ##???????????? | | ???????????????####### #??## ####????????????? | | ??????????????## ## ########???????????????? | | ??????????????# ##?????????????????? | | ??????????????# h @ #?????????????????? | | ??????????????# #?????????????????? | | ??????????????## ## #????????????????? | | ??????????????## ##### #???????????????? | | ??????????????# ##???# #???????????????? | | ??????????????# ##????# ##???????????????? | | ?????????????## %##????## ##????????????????? | | ??????????####% ##?????######?????????????????? | | ??# ####### #####????????????????????????? | | ??# % ####?????????????????????? | | ?????## ## %% #?????????????????????? | | ?????????## # #????????????????????? | | ??????????### ###### ???????????????? | | ????????????# #????## ### #??????????????? | | ????????????# #??????###???#### #?????????????? | | ????????????# #?????????????????????????????????? | | ????????????# #?????????????????????????????????? | | ????????????# #?????????????????????????????????? | | ????????????# ##????????????????????????????????? | | ????????????# ####?????????????????????????????? | | ????????????# ##????????????????????????????? | | ????????????### #????????????????????????????? | | ??????????????# #????????????????????????????? | | ??????????????# ##????????????????????????????? | | ??????????????# ##?????????????????????????????? | +----------------------------------------------------+ Best States ------------- Heat Dissipation 28 Energy Generation 12 Energy Capacity 265 Matter Stores 300 Matter Capacity 300 Sight Range 16 Terrain Scan Density 10 Resistance: KI 20 Resistance: TH 20 Resistance: EX 20 Resistance: EM 20 Resistance: I 20 Resistance: S 20 Resistance: P 20 Evasion (%) 62 Recoil Reduction 2 Offensive Hacking 20 Item Schematics ----------------- ECM Suite | -9/Materials | Scanalyzed Robot Schematics ------------------ None Fabricated ------------ Nothing Alien Tech Used ----------------- None Achievements -------------- None Challenges ------------ None Game ------ Seed ArchitectCobblerClaw Manual? 0 Play Time 00:22:05 Cumulative 5.1 hours Start 2024.03.14 @ 00:27:10 End 2024.03.14 @ 00:50:05 Sessions 1 Manual Loads 0 Difficulty Adventurer Special Mode None Game No. 10 Rogue 0 Adventurer 9 Explorer 1 Win Type - Total 0 Types 0/0/0/0/0/0/0/0/0 Lore% 7 Gallery% 8 Achievement% 6 Wizard Run 0 Options --------- Layout 1 ASCII 0 Keyboard 1 Movement Numpad Keybinds 0 Fullscreen 1 Font 48/Smallcaps Map View 50x35 Zoom Use 0% Tactical HUD 0 Map Filters NONE Filters NONE Steam 1 RUN: ea5e5603-6599-4cd0-a9e4-df47076941d8